bitfinex-derivatives/quotes_ETHF0:USTF0_20241230
["timestamp","ask_amount","ask_price","bid_price","bid_amount"]
[1735595198754,3.2078,3320.4,3319.7,40.8]
[1735595198961,3.2078,3320.8,3319.7,40.8]
[1735595199261,3.2078,3320.8,3320.0,3.2078]
[1735595199462,3.50927,3321.5,3320.6,0.30155]
[1735595199660,0.30149,3321.4,3320.4,0.30157]
[1735595199860,3.2078,3321.5,3321.0,0.30151]
[1735595200162,3.2078,3321.5,3320.4,8.2078]
[1735595200464,3.2078,3321.9,3320.8,3.2078]
[1735595200659,3.2078,3321.9,3321.1,0.3015]
[1735595200859,3.2078,3321.9,3320.8,6.41000215]
[1735595200860,3.2078,3321.9,3321.2,3.2078]
[1735595201256,3.2078,3322.4,3321.2,3.2078]
[1735595201463,3.2078,3322.4,3321.2,8.2078]
[1735595201760,8.2078,3322.4,3320.9,1.2857]
[1735595202067,3.2078,3321.9,3320.9,1.2857]
[1735595202256,0.30148,3321.4,3320.8,3.2078]
[1735595202562,3.2078,3321.5,3320.8,3.2078]
[1735595202960,3.2078,3321.5,3320.4,3.2078]
[1735595203163,8.2078,3321.5,3320.4,3.2078]
[1735595203468,3.2078,3321.1,3319.9,1.4175]
[1735595203860,3.2078,3321.1,3320.2,3.2078]
[1735595204063,3.2078,3321.6,3320.2,3.2078]
[1735595204279,3.2078,3321.6,3321.1,0.3015]
[1735595204462,3.2078,3321.6,3321.2,40.8]
[1735595204463,3.50927,3321.6,3321.2,40.8]
[1735595204658,3.2078,3321.6,3321.2,40.8]
[1735595205163,3.2078,3322.8,3321.5,3.2078]
[1735595205363,2.2149943,3322.9,3322.7,0.30136]
[1735595205569,0.0776943,3322.9,3322.8,0.30135]
[1735595205873,0.3789843,3323.6,3322.3,3.2078]
[1735595206161,0.0776943,3323.6,3322.9,0.30134]
[1735595206369,0.0776943,3323.6,3322.8,40.8]
[1735595206666,0.0776943,3323.6,3322.8,41.10135]
[1735595206860,0.0776943,3323.6,3322.9,0.30134]
[1735595207059,0.0776943,3323.6,3323.5,0.30129]
[1735595207464,0.0776943,3323.6,3322.9,1.3863]
[1735595207663,3.2078,3324.1,3322.9,1.3863]
[1735595207864,0.30125,3324.0,3323.2,0.30131]
[1735595208369,3.2078,3324.1,3323.1,3.2078]
[1735595208673,3.2078,3324.1,3323.6,0.30128]
[1735595209064,3.2078,3324.1,3323.7,0.30127]
[1735595209372,3.2078,3324.1,3323.5,0.30129]
[1735595209669,3.2078,3324.1,3323.4,0.30129]
[1735595209972,3.2078,3324.1,3323.2,1.86]
[1735595210359,3.2078,3324.1,3323.8,0.30125]
[1735595210562,3.2078,3324.1,3323.9,0.30125]
[1735595210874,3.2078,3324.1,3323.2,1.86]
[1735595211071,3.2078,3324.1,3323.9,0.30125]
[1735595211368,3.2078,3324.1,3323.8,0.30126]
[1735595211664,3.2078,3324.1,3324.0,0.30124]
[1735595211867,3.2078,3325.2,3324.4,0.3012]
[1735595212060,0.30109,3325.7,3324.9,0.30116]
[1735595212260,3.2078,3325.8,3325.1,0.30114]
[1735595212461,3.2078,3325.8,3324.7,3.2078]
[1735595212666,3.2078,3325.8,3325.1,3.2078]
[1735595212862,3.2078,3325.8,3324.9,3.20220215]
[1735595212863,3.2078,3326.4,3325.5,3.2078]
[1735595213063,3.2078,3326.4,3326.1,0.30105]
[1735595213263,3.2078,3327.2,3326.3,3.2078]
[1735595213468,3.2078,3327.7,3326.8,3.2078]
[1735595213676,3.2078,3327.7,3327.3,0.30094]
[1735595213869,3.2078,3327.7,3327.5,0.30092]
[1735595214066,3.2078,3327.7,3327.3,1.86]
[1735595214274,4.919,3329.1,3327.3,6.86]
[1735595214275,3.35011818,3327.8,3327.3,6.86]
[1735595214469,3.35011818,3327.8,3327.7,3.50311215]
[1735595214771,4.46682424,3328.0,3327.9,0.30089]
[1735595215076,3.2078,3329.0,3327.9,0.30089]
[1735595215269,3.2078,3329.0,3328.0,0.30088]
[1735595215472,3.54700762,3348.4,3328.0,0.30088]
[1735595215473,3.2078,3329.4,3328.8,3.20220215]
[1735595215768,3.2078,3329.4,3329.3,3.20220215]
[1735595215962,3.2078,3329.4,3329.0,0.30079]
[1735595216163,11.29794259,3330.5,3329.3,3.20220215]
[1735595216364,11.29794259,3330.5,3329.2,3.2078]
[1735595216365,11.59860259,3330.5,3329.2,3.2078]
[1735595216570,3.2078,3329.8,3328.8,3.2078]
[1735595216768,0.30068,3330.2,3328.8,3.5086]
[1735595216968,3.2078,3329.9,3329.0,0.30079]
[1735595217176,3.2078,3329.9,3328.8,6.41000215]
[1735595217177,3.2078,3329.9,3328.8,11.41000215]
[1735595217472,3.2078,3329.9,3328.8,3.2078]
[1735595217666,3.2078,3329.4,3328.4,3.2078]
[1735595217864,0.30074,3329.6,3328.4,3.2078]
[1735595218075,3.2078,3329.1,3328.4,3.2078]
[1735595218568,3.2078,3329.1,3327.7,1.3288]
[1735595218569,3.2078,3329.1,3328.0,3.2078]
[1735595218764,0.30079,3329.0,3328.0,3.2078]
[1735595218970,0.30083,3328.6,3327.6,3.2078]
[1735595219270,0.30084,3328.5,3327.6,3.2078]
[1735595219470,3.2078,3328.2,3327.6,3.2078]
[1735595219673,3.2078,3328.2,3327.9,0.30089]
[1735595219868,3.2078,3328.7,3328.0,3.2078]
[1735595220075,3.2078,3329.1,3328.6,0.30083]
[1735595220276,3.2078,3329.1,3328.4,3.2078]
[1735595220476,3.2078,3329.1,3328.8,0.3008]
[1735595220676,3.2078,3329.1,3328.4,6.41000215]
[1735595220677,3.2078,3329.1,3328.7,0.30082]
[1735595220981,3.2078,3329.6,3329.0,0.30079]
[1735595221382,3.2078,3329.6,3328.8,5.0658]
[1735595221578,0.30077,3329.3,3328.8,3.2078]
[1735595221777,0.30077,3329.3,3327.9,1.3808]
[1735595221778,3.2078,3329.6,3328.6,0.30083]
[1735595221979,3.2078,3329.2,3328.5,3.2078]
[1735595222174,3.2078,3329.2,3328.4,1.858]
[1735595222375,3.2078,3329.2,3328.0,3.2078]
[1735595222576,3.2078,3329.2,3328.0,10.0658]
[1735595222781,3.2078,3329.2,3328.4,3.2078]
[1735595223282,3.2078,3329.6,3328.9,0.3008]
[1735595223584,3.2078,3329.6,3328.8,3.2078]
[1735595223785,3.2078,3330.1,3329.4,3.2078]
[1735595223984,3.2078,3330.1,3329.0,5.0648]
[1735595224180,3.50854,3329.6,3328.6,3.50863]
[1735595224379,3.2078,3329.6,3329.0,0.30079]
[1735595224583,3.2078,3330.0,3329.0,3.2078]
[1735595224972,3.2078,3330.0,3329.5,0.30075]
[1735595225182,3.2078,3330.0,3329.4,3.2078]
[1735595225483,0.00735099,3330.5,3330.1,0.30069]
[1735595225782,0.00735099,3330.5,3330.2,40.8]
[1735595226280,0.00735099,3330.5,3330.4,0.30066]
[1735595226579,0.00735099,3330.5,3330.2,3.2078]
[1735595226580,0.00735099,3330.5,3330.2,0.30068]
[1735595226778,0.00735099,3330.5,3329.8,3.2078]
[1735595227084,0.00735099,3330.5,3330.2,3.2078]
[1735595227283,0.00735099,3330.5,3330.4,0.30066]
[1735595227491,0.00735099,3330.5,3329.8,3.2078]
[1735595228785,3.2078,3330.0,3329.3,3.2078]
[1735595228980,3.2078,3330.0,3329.4,0.30076]
[1735595229190,3.2078,3330.2,3329.3,8.2078]
[1735595229377,0.30068,3330.3,3329.5,0.30074]
[1735595229573,0.30068,3330.3,3329.3,8.2078]
[1735595229574,3.2078,3330.4,3329.3,8.2078]
[1735595229779,3.2078,3330.4,3329.8,0.30072]
[1735595229986,0.30067,3330.3,3329.4,0.30075]
[1735595230189,3.2078,3330.4,3329.3,13.1328805]
[1735595230389,3.2078,3330.4,3329.7,0.30072]
[1735595230592,3.2078,3330.4,3329.5,5.0638]
[1735595230790,0.00735099,3330.5,3330.3,3.2078]
[1735595231086,3.2078,3331.4,3330.3,3.2078]
[1735595231297,3.2078,3331.4,3330.9,0.30061]
[1735595231497,3.2078,3331.4,3330.3,8.2078]
[1735595231498,3.2078,3331.4,3330.5,1.856]
[1735595231992,7.896,3337.0,3331.2,3.2078]
[1735595231993,3.2078,3332.7,3331.2,3.2078]
[1735595232288,3.50826,3332.7,3331.7,0.30055]
[1735595232489,3.50826,3332.7,3331.1,5.6765805]
[1735595232490,3.2078,3332.2,3331.2,3.2078]
[1735595232792,3.2078,3332.8,3331.8,3.2078]
[1735595232992,4.919,3333.8,3332.2,3.2078]
[1735595232993,3.2078,3333.8,3332.2,3.2078]
[1735595233182,0.30048,3332.5,3331.9,1.856]
[1735595233491,3.2078,3333.2,3331.9,40.8]
[1735595233690,3.2078,3332.7,3331.9,40.8]
[1735595234389,3.50826,3332.7,3331.9,41.10052]
[1735595234694,3.50826,3332.7,3331.7,3.2078]
[1735595234889,3.2078,3332.7,3332.0,0.30051]
[1735595235091,0.30049,3332.4,3332.1,40.8]
[1735595235287,3.2078,3332.7,3331.8,0.30054]
[1735595235491,3.2078,3332.7,3331.3,4.6191]
[1735595235687,3.50826,3332.7,3331.4,40.8]
[1735595235888,3.2078,3332.7,3332.2,0.3005]
[1735595236497,3.2078,3332.7,3331.7,3.2078]
[1735595236696,3.2078,3332.3,3331.7,3.2078]
[1735595237089,0.30055,3331.7,3331.2,1.807]
[1735595237287,3.2078,3331.8,3330.9,3.2078]
[1735595237487,0.30059,3331.3,3330.9,3.2078]
[1735595237785,3.2078,3331.4,3330.2,1.3689]
[1735595237983,4.5435,3332.2,3331.0,3.2078]
[1735595238188,3.2078,3332.2,3331.0,3.2078]
[1735595238395,3.2078,3332.6,3331.8,3.2078]
[1735595238986,3.2078,3333.0,3331.8,3.2078]
[1735595239288,3.2078,3332.6,3331.8,3.2078]
[1735595239495,3.50822,3333.2,3332.4,0.30048]
[1735595239687,0.30044,3332.9,3332.2,3.5083]
[1735595239886,0.30048,3332.5,3332.2,3.2078]
[1735595240094,3.2078,3332.8,3332.2,3.2078]
[1735595240295,3.2078,3332.8,3331.6,3.2078]
[1735595240513,3.2078,3332.4,3331.8,0.30053]
[1735595240694,3.2078,3332.4,3331.6,3.2078]
[1735595240695,3.2078,3332.4,3331.9,0.30053]
[1735595241083,3.2078,3332.4,3332.0,0.30052]
[1735595241292,3.2078,3332.4,3331.9,0.30053]
[1735595241495,0.751,3333.4,3331.9,0.30053]
[1735595241496,0.30047,3332.6,3331.9,0.30053]
[1735595241894,3.2078,3332.8,3331.9,0.30053]
[1735595242192,3.2078,3332.8,3332.0,3.2078]
[1735595242388,3.2078,3332.8,3332.1,0.3005]
[1735595242595,3.2078,3332.8,3332.5,0.30047]
[1735595243097,3.2078,3332.8,3332.7,0.30046]
[1735595243292,3.2078,3332.8,3332.0,3.9591]
[1735595243293,3.2078,3333.3,3332.4,8.21322317]
[1735595243490,3.2078,3333.3,3332.4,5.00542317]
[1735595243690,3.2078,3333.3,3332.7,3.2078]
[1735595243892,2.08653,3334.2,3332.2,3.5083]
[1735595243893,0.30045,3332.9,3332.2,3.5083]
[1735595244088,3.2078,3333.1,3332.2,3.2078]
[1735595244493,3.2078,3333.1,3332.3,40.8]
[1735595244696,3.2078,3333.1,3332.2,3.2078]
[1735595244997,0.75094,3333.7,3332.2,3.5083]
[1735595244998,3.2078,3332.7,3332.2,3.5083]
[1735595245194,3.2078,3333.5,3332.3,40.8]
[1735595245694,3.2078,3333.5,3332.9,0.30043]
[1735595245994,3.2078,3333.5,3332.8,1.806]
[1735595246191,3.2078,3334.4,3333.0,3.2078]
[1735595246391,0.30032,3334.3,3333.0,3.2078]
[1735595246589,3.2078,3334.4,3333.0,3.2078]
[1735595246791,0.30032,3334.3,3333.7,0.30037]
[1735595246992,0.30033,3334.2,3333.1,3.2078]
[1735595247196,3.2078,3334.4,3333.8,0.30035]
[1735595247496,3.2078,3334.4,3333.1,5.0]
[1735595247497,3.2078,3334.4,3334.3,0.30031]
[1735595247900,1.343,3335.5,3333.9,5.0138]
[1735595247901,0.30025,3335.1,3334.4,0.3003]
[1735595248103,3.2078,3335.2,3333.9,8.21322317]
[1735595248306,3.2078,3335.2,3334.7,0.30028]
[1735595248506,3.2078,3335.3,3334.8,40.8]
[1735595248691,9.01056,3336.6,3334.8,40.8]
[1735595248692,3.2078,3337.4,3335.2,6.40722317]
[1735595248894,3.2078,3337.4,3334.9,9.315]
[1735595248895,3.2078,3337.4,3336.5,3.2078]
[1735595249197,0.30006,3337.2,3336.3,0.30013]
[1735595249505,3.50784,3337.4,3336.5,3.50791]
[1735595249692,3.2078,3337.4,3336.9,3.2078]
[1735595249889,0.29998,3338.1,3336.9,3.2078]
[1735595250091,0.29989,3339.0,3338.0,3.19942317]
[1735595250304,7.66637151,3339.8,3338.4,0.29994]
[1735595250504,7.66637151,3339.8,3338.2,3.2078]
[1735595250702,0.29986,3339.4,3338.3,0.29995]
[1735595251002,3.2078,3339.8,3338.2,3.2078]
[1735595251203,0.29988,3339.1,3338.2,3.2078]
[1735595251394,3.2078,3339.4,3338.2,3.2078]
[1735595251594,3.2078,3339.4,3336.6,0.75026]
[1735595251595,3.2078,3338.3,3337.2,3.2078]
[1735595251795,0.30002,3337.6,3337.2,3.2078]
[1735595251993,3.2078,3337.9,3337.2,3.2078]
[1735595252198,8.2078,3337.9,3337.2,3.2078]
[1735595252506,0.30004,3337.3,3337.2,3.2078]
[1735595252701,0.30004,3337.3,3336.6,3.2078]
[1735595252702,0.30005,3337.2,3336.6,3.2078]
[1735595252900,8.2078,3337.3,3336.6,3.2078]
[1735595253102,8.2078,3337.3,3335.1,3.2078]
[1735595253103,0.30019,3335.7,3335.1,3.2078]
[1735595253310,3.2078,3336.1,3335.1,3.2078]
[1735595253599,0.30017,3336.0,3335.6,3.2078]
[1735595253808,3.2078,3336.2,3335.2,3.2078]
[1735595254000,0.30016,3336.1,3335.2,3.50802]
[1735595254201,0.30016,3336.1,3335.2,3.50803]
[1735595254401,3.2078,3336.6,3335.4,0.30021]
[1735595254603,3.2078,3336.2,3335.2,3.2078]
[1735595254800,0.30015,3336.1,3335.2,3.2078]
[1735595255001,3.2078,3335.8,3334.8,3.2078]
[1735595255300,3.2078,3335.8,3333.9,1.2892]
[1735595255301,3.2078,3335.2,3334.4,3.2078]
[1735595255500,0.30025,3335.0,3334.4,3.2078]
[1735595255709,3.2078,3335.2,3334.4,3.2078]
[1735595255919,4.919,3336.0,3334.4,3.2078]
[1735595256113,3.2078,3335.3,3334.4,3.2078]
[1735595256416,4.919,3335.9,3334.4,3.2078]
[1735595256417,1.337,3337.1,3335.3,0.75056]
[1735595256618,3.2078,3337.7,3336.8,3.2078]
[1735595256814,0.30004,3337.4,3336.8,3.2078]
[1735595257111,0.30003,3337.5,3336.8,3.2078]
[1735595257411,5.0,3337.7,3336.8,3.2078]
[1735595257613,0.30003,3337.5,3336.8,3.2078]
[1735595258017,5.0,3337.5,3336.8,3.2078]
[1735595258212,0.30007,3337.0,3336.8,3.2078]
[1735595258416,0.30008,3336.9,3336.8,3.2078]
[1735595258618,5.0,3337.5,3336.8,3.2078]
[1735595258819,4.919,3337.6,3336.8,3.2078]
[1735595259019,0.30003,3337.5,3337.2,3.2078]
[1735595259222,3.2078,3338.1,3337.2,3.2078]
[1735595259722,0.29999,3338.0,3337.4,0.30003]
[1735595259921,0.29999,3338.0,3337.2,3.2078]
[1735595259922,3.2078,3338.1,3337.2,3.2078]
[1735595260113,2.773,3338.3,3337.7,3.2078]
[1735595260114,1.3521,3338.3,3337.7,3.2078]
[1735595260314,1.1588564,3338.5,3338.1,3.2078]
[1735595260828,1.1588564,3338.5,3338.3,0.29995]
[1735595261121,1.1588564,3338.5,3338.4,0.29994]
[1735595261321,0.81802557,3338.5,3338.4,0.29994]
[1735595262214,0.81802557,3338.5,3338.4,5.29994]
[1735595262420,0.29985,3339.5,3338.6,0.29992]
[1735595262618,0.29985,3339.5,3339.1,3.2078]
[1735595263023,0.29982,3339.8,3339.1,3.2078]
[1735595263223,3.2078,3341.0,3339.7,3.2078]
[1735595263414,0.29975,3340.6,3340.2,3.2078]
[1735595263828,3.2078,3341.1,3340.2,3.2078]
[1735595264018,0.29971,3341.0,3340.2,3.2078]
[1735595264226,6.4004,3341.3,3340.2,3.2078]
[1735595264227,0.29974,3340.7,3340.2,3.2078]
[1735595264420,1.4004,3341.3,3340.2,3.2078]
[1735595264616,1.4004,3341.3,3340.6,3.2078]
[1735595264818,0.29974,3340.7,3340.6,3.2078]
[1735595265020,0.29977,3340.3,3340.2,3.2078]
[1735595265222,0.29977,3340.3,3339.1,3.19942317]
[1735595265223,4.919,3341.2,3339.9,3.2078]
[1735595265425,0.29976,3340.5,3340.0,0.2998]
[1735595265620,0.29976,3340.5,3339.9,3.50761]
[1735595265826,0.29975,3340.6,3340.0,0.2998]
[1735595266227,0.29975,3340.6,3339.9,3.2078]
[1735595266228,1.4004,3341.3,3340.3,3.2078]
[1735595266531,0.29974,3340.7,3340.3,3.2078]
[1735595266834,0.29977,3340.4,3340.3,3.2078]
[1735595267022,0.29976,3340.5,3340.3,3.2078]
[1735595267324,3.2078,3341.1,3340.3,3.2078]
[1735595267523,3.2078,3341.5,3340.7,3.2078]
[1735595267717,0.29973,3340.8,3340.3,3.2078]
[1735595268027,0.29973,3340.8,3340.3,3.50757]
[1735595268219,3.2078,3341.5,3340.3,3.2078]
[1735595268434,0.29974,3340.7,3340.3,3.2078]
[1735595268726,8.2078,3341.5,3340.3,3.2078]
[1735595268924,0.29968,3341.4,3340.4,0.29976]
[1735595269229,0.2997,3341.2,3340.3,3.2078]
[1735595269434,0.2997,3341.2,3340.6,0.29975]
[1735595269622,3.2078,3341.5,3340.7,3.2078]
[1735595269819,3.2078,3341.5,3340.6,3.19942317]
[1735595269820,0.29962,3342.0,3341.3,0.29968]
[1735595270025,3.2078,3342.7,3341.7,3.2078]
[1735595270230,3.2078,3342.7,3341.6,3.19942317]
[1735595270231,3.2078,3343.5,3342.2,3.2078]
[1735595270424,4.919,3343.3,3341.8,3.2078]
[1735595270728,0.29954,3343.0,3342.2,0.2996]
[1735595271028,3.2078,3343.5,3342.1,3.2078]
[1735595271029,8.2078,3343.5,3342.1,3.2078]
[1735595271230,0.2996,3342.2,3342.1,3.2078]
[1735595271422,3.2078,3342.2,3341.4,3.2078]
[1735595271622,5.0,3342.2,3341.3,3.2078]
[1735595271822,3.2078,3342.0,3341.3,3.2078]
[1735595272125,0.29963,3341.9,3341.3,3.50748]
[1735595272326,0.29965,3341.7,3341.3,3.2078]
[1735595272527,3.2078,3342.4,3341.3,3.2078]
[1735595272834,3.2078,3343.3,3342.1,3.2078]
[1735595273035,3.2078,3342.9,3342.1,3.2078]
[1735595273228,4.919,3343.2,3342.1,3.2078]
[1735595273423,3.2078,3342.9,3342.1,3.2078]
[1735595274128,0.2996,3342.2,3342.1,3.2078]
[1735595274321,0.2996,3342.3,3342.1,3.2078]
[1735595274527,8.2078,3342.9,3342.1,3.2078]
[1735595274832,0.2996,3342.2,3342.1,3.2078]
[1735595275225,4.919,3342.8,3342.1,3.2078]
[1735595275426,0.29961,3342.1,3342.0,3.2078]
[1735595275828,0.74892,3342.7,3342.0,3.2078]
[1735595275829,0.29961,3342.2,3342.0,3.2078]
[1735595276036,0.29961,3342.1,3342.0,3.2078]
[1735595276529,0.74892,3342.7,3342.0,3.2078]
[1735595276729,0.74892,3342.7,3341.3,3.2078]
[1735595276730,0.29968,3341.4,3341.3,3.2078]
[1735595277033,0.29974,3340.8,3340.5,3.2078]
[1735595277233,0.29975,3340.6,3340.5,3.2078]
[1735595277438,0.29979,3340.1,3340.0,3.2078]
[1735595277630,0.74936,3340.7,3340.0,3.2078]
[1735595277827,0.74945,3340.3,3339.5,3.2078]
[1735595278029,0.29984,3339.6,3339.5,3.2078]
[1735595278333,0.29989,3339.0,3338.8,3.2078]
[1735595278628,0.29989,3339.0,3338.1,10.6612]
[1735595278629,8.1268,3339.8,3338.4,3.2078]
[1735595278822,0.2999,3338.9,3338.5,0.29993]
[1735595279020,4.919,3339.7,3338.4,3.2078]
[1735595279021,3.2078,3339.3,3338.4,3.2078]
[1735595279227,3.2078,3338.8,3337.9,3.2078]
[1735595279433,4.919,3339.2,3338.3,3.2078]
[1735595279631,3.2078,3338.8,3337.9,3.2078]
[1735595279836,4.919,3339.1,3337.3,3.2078]
[1735595280028,4.919,3338.2,3336.8,3.2078]
[1735595280331,0.30003,3337.5,3337.3,3.2078]
[1735595280723,0.29997,3338.2,3337.3,3.2078]
[1735595280929,3.2078,3338.4,3337.1,3.2078]
[1735595281230,0.30001,3337.7,3337.6,3.2078]
[1735595281428,0.30001,3337.7,3336.3,1.776]
[1735595281429,3.2078,3337.9,3336.8,3.2078]
[1735595281929,0.30008,3336.9,3336.8,3.2078]
[1735595282434,3.2078,3337.3,3336.6,3.2078]
[1735595282730,3.2078,3337.3,3336.1,3.2078]
[1735595282731,8.1268,3337.3,3336.1,3.2078]
[1735595282931,0.30012,3336.5,3336.1,3.2078]
[1735595283123,4.919,3337.1,3336.1,3.2078]
[1735595283332,0.30009,3336.8,3336.6,3.2078]
[1735595283528,4.919,3337.9,3336.6,3.2078]
[1735595283728,4.919,3338.6,3337.8,3.2078]
[1735595283924,0.29999,3338.0,3337.8,3.2078]
[1735595284135,5.66885,3338.5,3337.2,3.2078]
[1735595284331,4.919,3338.4,3337.2,3.2078]
[1735595284636,0.30002,3337.6,3337.2,3.2078]
[1735595284827,4.919,3338.1,3337.2,3.2078]
[1735595285035,0.30006,3337.2,3336.8,3.2078]
[1735595285332,4.919,3337.6,3336.8,3.2078]
[1735595285527,4.919,3337.6,3336.5,3.19942317]
[1735595285528,4.919,3337.6,3337.3,3.2078]
[1735595286233,4.919,3337.6,3337.3,3.50784]
[1735595286435,4.919,3337.6,3337.3,3.2078]
[1735595286624,0.30003,3337.5,3337.3,3.2078]
[1735595286826,0.30003,3337.4,3337.3,3.2078]
[1735595287431,4.919,3337.3,3336.0,3.2078]
[1735595287633,3.2078,3336.5,3335.5,6.40722317]
[1735595287937,4.919,3336.3,3335.5,3.2078]
[1735595288132,0.30022,3335.4,3335.1,3.2078]
[1735595288327,4.919,3336.1,3335.1,3.2078]
[1735595288630,0.30016,3336.1,3335.5,3.2078]
[1735595288935,0.30017,3336.0,3335.5,3.2078]
[1735595289130,4.919,3336.2,3335.5,3.2078]
[1735595289435,0.30008,3336.9,3336.0,0.30015]
[1735595289626,0.30008,3336.9,3335.9,3.2078]
[1735595289627,4.919,3337.0,3335.8,3.2078]
[1735595289826,0.30017,3335.9,3335.8,3.2078]
[1735595290033,5.21911,3336.6,3335.8,3.2078]
[1735595290237,0.30013,3336.4,3335.8,3.2078]
[1735595290431,4.919,3336.6,3335.8,3.2078]
[1735595290735,0.30017,3335.9,3335.8,3.2078]
[1735595291329,4.919,3336.5,3335.8,3.2078]
[1735595291532,0.30017,3335.9,3335.8,3.2078]
[1735595292637,0.30017,3335.9,3334.4,2.09445]
[1735595292638,0.30029,3334.6,3334.5,3.2078]
[1735595293340,8.1268,3335.6,3334.5,3.2078]
[1735595293341,4.919,3335.3,3334.5,3.2078]
[1735595293543,0.30027,3334.8,3334.5,3.2078]
[1735595293840,0.75049,3335.7,3334.5,3.2078]
[1735595293841,0.30015,3336.1,3334.8,0.75067]
[1735595294131,4.919,3336.1,3334.8,3.2078]
[1735595294338,4.919,3335.4,3334.8,3.2078]
[1735595294531,4.919,3335.4,3334.0,3.19942317]
[1735595294532,0.3003,3334.5,3334.4,3.2078]
[1735595294727,4.919,3335.0,3334.5,0.30029]
[1735595294728,0.30027,3334.8,3334.5,0.30029]
[1735595294927,4.919,3335.7,3334.4,3.2078]
[1735595295132,4.919,3335.7,3335.1,3.2078]
[1735595295133,0.30024,3335.2,3335.1,3.2078]
[1735595295353,0.3003,3334.5,3334.4,3.2078]
[1735595295537,5.0,3335.7,3334.4,3.2078]
[1735595295538,4.919,3335.1,3334.4,3.2078]
[1735595295728,4.919,3335.0,3334.2,3.2078]
[1735595296036,0.30031,3334.4,3334.3,3.2078]
[1735595296640,0.3003,3334.4,3334.3,3.2078]
[1735595297042,4.919,3335.0,3334.3,3.2078]
[1735595297244,3.95831,3335.6,3334.4,3.2078]
[1735595297245,0.3003,3334.5,3334.4,3.2078]
[1735595297736,0.3003,3334.5,3333.1,2.6684]
[1735595297737,4.919,3334.6,3333.9,3.2078]
[1735595297934,4.919,3334.6,3333.8,3.2078]
[1735595298137,0.75081,3334.3,3333.8,3.2078]
[1735595298337,0.30035,3333.9,3333.8,3.2078]
[1735595298841,4.919,3334.9,3333.8,3.2078]
[1735595299045,4.919,3335.0,3334.4,3.2078]
[1735595299246,0.3003,3334.5,3334.4,3.2078]
[1735595299441,0.3003,3334.5,3334.4,44.0078]
[1735595299644,4.919,3334.9,3333.9,3.2078]
[1735595299838,0.30034,3334.1,3333.9,3.2078]
[1735595300144,0.7507,3334.7,3333.9,3.2078]
[1735595300343,3.95857,3334.4,3333.0,3.2078]
[1735595300648,4.919,3334.6,3334.0,3.2078]
[1735595300649,0.30033,3334.1,3334.0,3.2078]
[1735595300940,0.30038,3333.6,3333.4,3.2078]
[1735595301241,5.66984,3334.1,3332.9,3.2078]
[1735595301442,4.919,3333.8,3333.1,3.2078]
[1735595301642,5.0,3334.2,3332.2,2.03736]
[1735595301643,4.919,3334.2,3333.6,0.30038]
[1735595301941,4.919,3334.2,3333.5,3.2078]
[1735595301942,0.30036,3333.8,3333.7,3.2078]
[1735595302149,0.30036,3333.8,3332.7,3.19942317]
[1735595302150,4.919,3334.2,3333.3,3.2078]
[1735595302342,0.75095,3333.7,3332.6,3.2078]
[1735595302537,0.30046,3332.7,3332.6,3.2078]
[1735595302747,0.75103,3333.3,3332.6,3.2078]
[1735595302940,0.30045,3332.8,3332.6,3.2078]
[1735595303144,4.919,3333.5,3332.6,3.2078]
[1735595303347,0.30046,3332.7,3332.6,3.2078]
[1735595303648,4.919,3333.3,3332.6,3.2078]
[1735595304048,0.30046,3332.7,3332.6,3.2078]
[1735595304440,0.30044,3332.9,3332.6,3.2078]
[1735595304640,0.30045,3332.9,3332.6,3.2078]
[1735595304842,4.9948,3333.4,3332.6,3.2078]
[1735595305345,0.30045,3332.8,3332.6,3.2078]
[1735595306444,0.75102,3333.3,3332.6,3.2078]
[1735595306650,0.30046,3332.7,3332.6,3.2078]
[1735595306843,0.75102,3333.3,3332.1,0.30051]
[1735595306844,0.30049,3332.4,3332.1,0.30051]
[1735595307051,0.30049,3332.4,3331.9,44.0078]
[1735595307052,0.30049,3332.4,3332.0,0.30052]
[1735595307344,3.2078,3332.9,3331.9,44.0078]
[1735595307546,0.30046,3332.7,3332.2,0.3005]
[1735595307947,3.2078,3332.9,3332.0,0.30052]
[1735595308145,8.1268,3332.9,3331.9,44.0078]
[1735595308353,4.919,3332.8,3331.9,44.0078]
[1735595308749,0.30052,3332.0,3331.9,44.0078]
[1735595308956,0.30052,3332.0,3331.9,40.8]
[1735595309246,0.30052,3332.1,3331.6,0.30055]
[1735595309448,3.2078,3332.4,3331.5,3.2078]
[1735595309648,3.2078,3332.4,3331.6,40.8]
[1735595309849,0.30051,3332.2,3331.6,41.10055]
[1735595310053,0.3005,3332.3,3331.7,0.30054]
[1735595310444,4.919,3332.6,3331.7,0.30054]
[1735595310445,4.919,3332.6,3331.7,8.19942317]
[1735595310649,0.30041,3333.3,3332.8,0.30045]
[1735595310950,3.2078,3333.4,3332.6,3.2078]
[1735595311145,8.1268,3333.8,3332.6,3.2078]
[1735595311345,0.3005,3332.3,3332.1,3.2078]
[1735595311549,3.95892,3332.9,3332.1,3.2078]
[1735595311550,0.3005,3332.2,3332.1,3.2078]
[1735595311749,4.919,3332.5,3332.1,3.2078]
[1735595312159,0.3005,3332.3,3332.1,3.2078]
[1735595312450,5.21948,3332.5,3332.1,3.2078]